[Event "Gaprindashvili Cup Open II Stage 2020"]
[Site "Online"]
[Date "2020.11.08"]
[Round "5.15"]
[White "Chanturia, Lasha"]
[Black "Qalichava, Akaki"]
[Result "0-1"]
[ECO "A03"]
[WhiteElo "1761"]
[BlackElo "1877"]
[Annotator "NA RC"]
[PlyCount "126"]
[EventDate "2020.11.04"]
[EventType "swiss"]
[SourceTitle "playchess.com"]
[Source "ChessBase"]
[SourceQuality "1"]
[TimeControl "1500+5"]

1. b3 {[%emt 0:00:00]} d5 {[%emt 0:00:13]} 2. Bb2 {[%emt 0:00:03]} Nf6 {[%emt 0:00:02]} 3. e3 {[%emt 0:00:02]} c5 {[%emt 0:00:03]} 4. f4 {[%emt 0:00:02]} Nc6 {[%emt 0:00:08]} 5. Nf3 {[%emt 0:00:02]} e6 {[%emt 0:00:02]} 6. Be2 {[%emt 0:00:16]} Be7 {[%emt 0:00:03]} 7. O-O {[%emt 0:00:05]} O-O {[%emt 0:00:03]} 8. Ne5 {[%emt 0:00:06]} Qc7 {[%emt 0:00:07]} 9. Nxc6 {[%emt 0:00:09]} Qxc6 {[%emt 0:00:02]} 10. Qe1 {[%emt 0:00:02]} b6 {[%emt 0:00:05]} 11. d3 {[%emt 0:00:03]} Bb7 {[%emt 0:00:03]} 12. Qg3 {[%emt 0:00:04]} Ne8 {[%emt 0:00:22]} 13. Nd2 {[%emt 0:00:06]} Bf6 {[%emt 0:00:02]} 14. Bxf6 {[%emt 0:00:04]} Nxf6 {[%emt 0:00:03]} 15. Nf3 {[%emt 0:00:03]} b5 {[%emt 0:00:17]} 16. a4 {[%emt 0:00:06]} a6 {[%emt 0:00:04]} 17. Ne5 {[%emt 0:00:06]} Qc7 {[%emt 0:00:11]} 18. h4 {[%emt 0:00:50]} Nd7 {[%emt 0:00:19]} 19. h5 {[%emt 0:02:05]} f6 {[%emt 0:00:06]} 20. Ng4 {[%emt 0:00:05]} f5 {[%emt 0:00:20]} 21. Ne5 {[%emt 0:01:23]} Nxe5 {[%emt 0:00:05]} 22. fxe5 {[%emt 0:00:03]} Bc6 {[%emt 0:00:04]} 23. axb5 {[%emt 0:00:19]} axb5 {[%emt 0:00:02]} 24. h6 {[%emt 0:00:16]} g6 {[%emt 0:00:06]} 25. d4 {[%emt 0:00:23]} Qb6 {[%emt 0:01:08]} 26. Bh5 {[%emt 0:01:38]} Kh8 {[%emt 0:00:30]} 27. Rxa8 {[%emt 0:01:29]} Rxa8 {[%emt 0:00:30]} 28. dxc5 {[%emt 0:02:35]} Qxc5 {[%emt 0:00:08]} 29. Qg5 {[%emt 0:00:08]} Qf8 {[%emt 0:00:55]} 30. Bf3 {[%emt 0:00:04]} b4 {[%emt 0:01:16]} 31. Rd1 {[%emt 0:00:56]} Kg8 {[%emt 0:01:30]} 32. g4 {[%emt 0:00:25]} Qf7 {[%emt 0:02:08]} 33. gxf5 {[%emt 0:01:58]} Qxf5 {[%emt 0:00:03]} 34. Qxf5 {[%emt 0:00:04]} gxf5 {[%emt 0:00:06]} 35. Kf2 {[%emt 0:00:11]} Kf8 {[%emt 0:00:58]} 36. Rg1 {[%emt 0:00:24]} Ra7 {[%emt 0:00:04]} 37. Ke2 {[%emt 0:01:07]} Be8 {[%emt 0:00:12]} 38. Kd3 {[%emt 0:00:19]} Bg6 {[%emt 0:00:20]} 39. c4 {[%emt 0:03:08]} bxc3 {[%emt 0:02:10]} 40. Kxc3 {[%emt 0:00:30]} Rc7+ {[%emt 0:00:04]} 41. Kb2 {[%emt 0:00:13]} f4 {[%emt 0:01:28]} 42. exf4 {[%emt 0:00:05]} Rc2+ {[%emt 0:00:03]} 43. Ka3 {[%emt 0:00:05]} Rf2 {[%emt 0:00:06]} 44. Rg3 {[%emt 0:00:24]} d4 {[%emt 0:00:05]} 45. Bd1 {[%emt 0:01:12]} Rxf4 {[%emt 0:00:15]} 46. Rf3 {[%emt 0:00:26]} Rxf3 {[%emt 0:00:32]} 47. Bxf3 {[%emt 0:00:03]} Bd3 {[%emt 0:00:06]} 48. Kb2 {[%emt 0:00:19]} Kf7 {[%emt 0:00:37]} 49. Bh5+ {[%emt 0:00:20]} Ke7 {[%emt 0:00:02]} 50. Kc1 {[%emt 0:00:04]} Kd7 {[%emt 0:00:03]} 51. Kd2 {[%emt 0:00:04]} Bf5 {[%emt 0:00:04]} 52. Be2 {[%emt 0:00:05]} Kc6 {[%emt 0:00:09]} 53. Bc4 {[%emt 0:00:40]} Kc5 {[%emt 0:00:11]} 54. Ba6 {[%emt 0:00:50]} Kd5 {[%emt 0:00:25]} 55. b4 {[%emt 0:00:17]} Kxe5 {[%emt 0:00:03]} 56. b5 {[%emt 0:00:03]} Kd6 {[%emt 0:00:02]} 57. b6 {[%emt 0:00:05]} Kc6 {[%emt 0:00:06]} 58. b7 {[%emt 0:00:02]} Kc7 {[%emt 0:00:02]} 59. Ke2 {[%emt 0:00:12]} e5 {[%emt 0:00:06]} 60. Kf3 {[%emt 0:00:10]} Bb1 {[%emt 0:00:40]} 61. Ke2 {[%emt 0:00:10]} Be4 {[%emt 0:00:02]} 62. Kd2 {[%emt 0:00:49]} Bxb7 {[%emt 0:00:04]} 63. Bc4 {[%emt 0:00:03]} Be4 {[%emt 0:00:04]} 0-1

[Event "Gaprindashvili Cup Open II Stage 2020"]
[Site "Online"]
[Date "2020.11.08"]
[Round "5.16"]
[White "Elashvili, Giorgi"]
[Black "Tsanatsqenishvili, Alexandre"]
[Result "1-0"]
[ECO "A58"]
[WhiteElo "1857"]
[BlackElo "1702"]
[Annotator "NA RC"]
[PlyCount "163"]
[EventDate "2020.11.04"]
[EventType "swiss"]
[SourceTitle "playchess.com"]
[Source "ChessBase"]
[SourceQuality "1"]
[TimeControl "1500+5"]

1. Nf3 {[%emt 0:00:06]} Nf6 {[%emt 0:00:03]} 2. d4 {[%emt 0:00:02]} g6 {[%emt 0:00:08]} 3. g3 {[%emt 0:00:02]} Bg7 {[%emt 0:00:01]} 4. Bg2 {[%emt 0:00:02]} O-O {[%emt 0:00:02]} 5. O-O {[%emt 0:00:01]} d6 {[%emt 0:00:04]} 6. c4 {[%emt 0:00:02]} c5 {[%emt 0:00:13]} 7. d5 {[%emt 0:00:19]} a6 {[%emt 0:00:10]} 8. Nc3 {[%emt 0:00:02]} b5 {[%emt 0:00:33]} 9. cxb5 {[%emt 0:00:13]} axb5 {[%emt 0:00:02]} 10. Nxb5 {[%emt 0:00:01]} Ba6 {[%emt 0:00:02]} 11. Nc3 {[%emt 0:00:05]} Nbd7 {[%emt 0:00:02]} 12. Re1 {[%emt 0:00:13]} Qa5 {[%emt 0:00:11]} 13. Bd2 {[%emt 0:01:31]} Rfb8 {[%emt 0:02:16]} 14. Qc2 {[%emt 0:00:13]} Ng4 {[%emt 0:07:45]} 15. b3 {[%emt 0:01:40]} c4 {[%emt 0:02:27]} 16. Na4 {[%emt 0:00:40]} Qb5 {[%emt 0:01:21]} 17. Rab1 {[%emt 0:00:23]} Rc8 {[%emt 0:00:51]} 18. Qe4 {[%emt 0:00:31]} Ngf6 {[%emt 0:02:36]} 19. Qxe7 {[%emt 0:00:57]} Nxd5 {[%emt 0:00:13]} 20. Qxd6 {[%emt 0:00:50]} c3 {[%emt 0:04:54]} 21. Bf4 {[%emt 0:00:31]} Bf8 {[%emt 0:02:39]} 22. Nd4 {[%emt 0:00:15]} Bxd6 {[%emt 0:00:03]} 23. Nxb5 {[%emt 0:00:02]} Bxf4 {[%emt 0:00:08]} 24. gxf4 {[%emt 0:01:34]} Bxb5 {[%emt 0:00:07]} 25. Bxd5 {[%emt 0:00:02]} Rab8 {[%emt 0:00:02]} 26. Rbc1 {[%emt 0:00:24]} Bxa4 {[%emt 0:00:05]} 27. bxa4 {[%emt 0:00:02]} Rb2 {[%emt 0:00:02]} 28. Bb3 {[%emt 0:02:16]} Nf6 {[%emt 0:00:06]} 29. Rc2 {[%emt 0:02:16]} Rxc2 {[%emt 0:00:08]} 30. Bxc2 {[%emt 0:00:01]} Nd5 {[%emt 0:00:05]} 31. Rb1 {[%emt 0:02:20]} Nxf4 {[%emt 0:00:07]} 32. Kf1 {[%emt 0:00:27]} Kg7 {[%emt 0:00:04]} 33. e3 {[%emt 0:00:28]} Ne6 {[%emt 0:00:03]} 34. Ke2 {[%emt 0:00:06]} h5 {[%emt 0:00:02]} 35. Rb3 {[%emt 0:00:21]} Kf6 {[%emt 0:00:06]} 36. a5 {[%emt 0:00:10]} Rc6 {[%emt 0:00:06]} 37. Ra3 {[%emt 0:00:45]} Rc8 {[%emt 0:00:11]} 38. a6 {[%emt 0:00:06]} Ke7 {[%emt 0:00:02]} 39. a7 {[%emt 0:00:05]} Ra8 {[%emt 0:00:01]} 40. Be4 {[%emt 0:00:39]} c2 {[%emt 0:00:07]} 41. Bxc2 {[%emt 0:00:04]} Nc5 {[%emt 0:00:03]} 42. Bb3 {[%emt 0:01:01]} Nxb3 {[%emt 0:00:06]} 43. axb3 {[%emt 0:00:01]} Kd6 {[%emt 0:00:01]} 44. h4 {[%emt 0:00:27]} Kc5 {[%emt 0:00:03]} 45. Ra4 {[%emt 0:00:15]} Kb5 {[%emt 0:00:03]} 46. Kd3 {[%emt 0:00:08]} Rd8+ {[%emt 0:00:02]} 47. Rd4 {[%emt 0:00:03]} Ra8 {[%emt 0:00:02]} 48. Rd7 {[%emt 0:00:06]} f5 {[%emt 0:00:02]} 49. f4 {[%emt 0:00:08]} Kb4 {[%emt 0:00:02]} 50. Rb7+ {[%emt 0:00:07]} Kc5 {[%emt 0:00:03]} 51. b4+ {[%emt 0:00:05]} Kd5 {[%emt 0:00:06]} 52. Rg7 {[%emt 0:00:22]} Kc6 {[%emt 0:00:07]} 53. Rxg6+ {[%emt 0:00:02]} Kb5 {[%emt 0:00:01]} 54. Rg5 {[%emt 0:00:11]} Rd8+ {[%emt 0:00:03]} 55. Kc3 {[%emt 0:00:02]} Kb6 {[%emt 0:00:02]} 56. Rxf5 {[%emt 0:00:07]} Kxa7 {[%emt 0:00:02]} 57. Rxh5 {[%emt 0:00:01]} Re8 {[%emt 0:00:01]} 58. Kd4 {[%emt 0:00:03]} Kb6 {[%emt 0:00:01]} 59. Rc5 {[%emt 0:00:04]} Rh8 {[%emt 0:00:02]} 60. h5 {[%emt 0:00:01]} Rd8+ {[%emt 0:00:02]} 61. Rd5 {[%emt 0:00:02]} Re8 {[%emt 0:00:03]} 62. e4 {[%emt 0:00:01]} Kc6 {[%emt 0:00:02]} 63. b5+ {[%emt 0:00:02]} Kc7 {[%emt 0:00:02]} 64. f5 {[%emt 0:00:02]} Rh8 {[%emt 0:00:02]} 65. f6 {[%emt 0:00:01]} Rh6 {[%emt 0:00:02]} 66. f7 {[%emt 0:00:03]} Rh8 {[%emt 0:00:04]} 67. Rf5 {[%emt 0:00:03]} Rf8 {[%emt 0:00:01]} 68. h6 {[%emt 0:00:01]} Kd7 {[%emt 0:00:04]} 69. h7 {[%emt 0:00:01]} Ke7 {[%emt 0:00:01]} 70. h8=Q {[%emt 0:00:04]} Rxh8 {[%emt 0:00:02]} 71. f8=Q+ {[%emt 0:00:02]} Rxf8 {[%emt 0:00:02]} 72. Rxf8 {[%emt 0:00:01]} Kxf8 {[%emt 0:00:00]} 73. b6 {[%emt 0:00:02]} Ke7 {[%emt 0:00:02]} 74. b7 {[%emt 0:00:01]} Kf6 {[%emt 0:00:01]} 75. b8=Q {[%emt 0:00:02]} Kg5 {[%emt 0:00:01]} 76. Qf8 {[%emt 0:00:04]} Kg4 {[%emt 0:00:02]} 77. e5 {[%emt 0:00:02]} Kg3 {[%emt 0:00:01]} 78. Ke3 {[%emt 0:00:02]} Kg2 {[%emt 0:00:01]} 79. Qf3+ {[%emt 0:00:07]} Kg1 {[%emt 0:00:02]} 80. Qe2 {[%emt 0:00:03]} Kh1 {[%emt 0:00:02]} 81. Kf3 {[%emt 0:00:02]} Kg1 {[%emt 0:00:02]} 82. Qg2# {[%emt 0:00:01]} 1-0

[Event "Gaprindashvili Cup Open II Stage 2020"]
[Site "Online"]
[Date "2020.11.08"]
[Round "5.18"]
[White "Kupatadze, Tornike"]
[Black "Gogolashvili, Giorgi"]
[Result "0-1"]
[ECO "A42"]
[WhiteElo "1657"]
[BlackElo "1448"]
[Annotator "NA RC"]
[PlyCount "56"]
[EventDate "2020.11.04"]
[EventType "swiss"]
[SourceTitle "playchess.com"]
[Source "ChessBase"]
[SourceQuality "1"]
[TimeControl "1500+5"]

1. e4 {[%emt 0:00:00]} g6 {[%emt 0:00:16]} 2. d4 {[%emt 0:00:08]} Bg7 {[%emt 0:00:03]} 3. c4 {[%emt 0:00:04]} d6 {[%emt 0:00:02]} 4. Nc3 {[%emt 0:00:07]} Nc6 {[%emt 0:00:02]} 5. Be3 {[%emt 0:00:03]} e5 {[%emt 0:00:01]} 6. d5 {[%emt 0:00:02]} Nce7 {[%emt 0:00:02]} 7. Qd2 {[%emt 0:00:12]} f5 {[%emt 0:00:05]} 8. f3 {[%emt 0:00:01]} Nf6 {[%emt 0:00:05]} 9. Bd3 {[%emt 0:00:34]} O-O {[%emt 0:00:12]} 10. O-O-O {[%emt 0:00:25]} c5 {[%emt 0:00:38]} 11. h4 {[%emt 0:00:13]} f4 {[%emt 0:00:35]} 12. Bf2 {[%emt 0:00:11]} Bd7 {[%emt 0:00:07]} 13. Nh3 {[%emt 0:01:19]} a6 {[%emt 0:00:13]} 14. g4 {[%emt 0:00:16]} fxg3 {[%emt 0:00:46]} 15. Be3 {[%emt 0:00:10]} b5 {[%emt 0:00:33]} 16. Rdg1 {[%emt 0:00:38]} Nh5 {[%emt 0:00:18]} 17. Ne2 {[%emt 0:00:42]} bxc4 {[%emt 0:00:30]} 18. Bxc4 {[%emt 0:00:09]} Bxh3 {[%emt 0:04:23]} 19. Rxh3 {[%emt 0:00:12]} Qd7 {[%emt 0:00:01]} 20. Rhh1 {[%emt 0:02:01]} Rxf3 {[%emt 0:00:06]} 21. Nc3 {[%emt 0:00:03]} Nf4 {[%emt 0:05:23]} 22. Be2 {[%emt 0:02:14]} Nxe2+ {[%emt 0:00:29]} 23. Nxe2 {[%emt 0:00:08]} Qg4 {[%emt 0:00:45]} 24. Bg5 {[%emt 0:00:21]} g2 {[%emt 0:02:37]} 25. Rh2 {[%emt 0:00:23]} Rf1+ {[%emt 0:00:08]} 26. Kc2 {[%emt 0:00:18]} Qxe4+ {[%emt 0:00:03]} 27. Kc3 {[%emt 0:00:04]} Nxd5+ {[%emt 0:00:06]} 28. Kb3 {[%emt 0:00:07]} Rf3+ {[%emt 0:00:53]} 0-1

[Event "Gaprindashvili Cup Open II Stage 2020"]
[Site "Online"]
[Date "2020.11.08"]
[Round "6.10"]
[White "kiladze, Luka"]
[Black "Adamia, Jaba"]
[Result "0-1"]
[ECO "E12"]
[WhiteElo "1786"]
[BlackElo "1899"]
[Annotator "NA RC"]
[PlyCount "48"]
[EventDate "2020.11.04"]
[EventType "swiss"]
[SourceTitle "playchess.com"]
[Source "ChessBase"]
[SourceQuality "1"]
[TimeControl "1500+5"]

1. d4 {[%emt 0:00:09]} Nf6 {[%emt 0:00:03]} 2. c4 {[%emt 0:00:05]} e6 {[%emt 0:00:02]} 3. Nf3 {[%emt 0:00:01]} b6 {[%emt 0:00:03]} 4. a3 {[%emt 0:00:01]} Bb7 {[%emt 0:00:11]} 5. Nc3 {[%emt 0:00:02]} Be7 {[%emt 0:00:07]} 6. d5 {[%emt 0:00:02]} d6 {[%emt 0:00:02]} 7. e4 {[%emt 0:00:02]} O-O {[%emt 0:00:02]} 8. Bd3 {[%emt 0:00:02]} exd5 {[%emt 0:00:02]} 9. cxd5 {[%emt 0:00:02]} c6 {[%emt 0:00:05]} 10. dxc6 {[%emt 0:00:06]} Nxc6 {[%emt 0:00:05]} 11. O-O {[%emt 0:00:02]} Ne5 {[%emt 0:02:30]} 12. Bc2 {[%emt 0:01:26]} Rc8 {[%emt 0:00:39]} 13. Bf4 {[%emt 0:00:40]} Nc4 {[%emt 0:01:29]} 14. Qb1 {[%emt 0:01:04]} Nh5 {[%emt 0:02:02]} 15. Bc1 {[%emt 0:01:20]} Ne5 {[%emt 0:00:20]} 16. Nxe5 {[%emt 0:02:15]} dxe5 {[%emt 0:00:06]} 17. Rd1 {[%emt 0:00:02]} Qc7 {[%emt 0:00:24]} 18. Bb3 {[%emt 0:00:13]} Nf6 {[%emt 0:01:13]} 19. f3 {[%emt 0:01:49]} Rfd8 {[%emt 0:00:46]} 20. Bg5 {[%emt 0:00:22]} Qc5+ {[%emt 0:03:11]} 21. Kh1 {[%emt 0:00:14]} Bxe4 {[%emt 0:00:22]} 22. Nxe4 {[%emt 0:02:14]} Nxe4 {[%emt 0:00:11]} 23. Qxe4 {[%emt 0:00:02]} Bxg5 {[%emt 0:00:03]} 24. Rd7 {[%emt 0:02:22]} Rxd7 {[%emt 0:00:57]} 0-1

[Event "Gaprindashvili Cup Open II Stage 2020"]
[Site "Online"]
[Date "2020.11.08"]
[Round "6.14"]
[White "Qalichava, Akaki"]
[Black "Safarov, Deniel"]
[Result "1/2-1/2"]
[ECO "B66"]
[WhiteElo "1877"]
[BlackElo "1720"]
[Annotator "NA RC"]
[PlyCount "42"]
[EventDate "2020.11.04"]
[EventType "swiss"]
[SourceTitle "playchess.com"]
[Source "ChessBase"]
[SourceQuality "1"]
[TimeControl "1500+5"]

1. e4 {[%emt 0:00:05]} c5 {[%emt 0:00:02]} 2. Nf3 {[%emt 0:00:02]} d6 {[%emt 0:00:02]} 3. d4 {[%emt 0:00:03]} cxd4 {[%emt 0:00:01]} 4. Nxd4 {[%emt 0:00:01]} Nf6 {[%emt 0:00:01]} 5. Nc3 {[%emt 0:00:03]} Nc6 {[%emt 0:00:02]} 6. Bg5 {[%emt 0:00:04]} e6 {[%emt 0:00:01]} 7. Qd2 {[%emt 0:00:04]} a6 {[%emt 0:00:02]} 8. f3 {[%emt 0:00:03]} h6 {[%emt 0:00:06]} 9. Be3 {[%emt 0:00:04]} Bd7 {[%emt 0:00:04]} 10. O-O-O {[%emt 0:00:02]} Qc7 {[%emt 0:00:10]} 11. Kb1 {[%emt 0:00:10]} Ne5 {[%emt 0:00:07]} 12. g4 {[%emt 0:00:21]} b5 {[%emt 0:00:15]} 13. Bd3 {[%emt 0:00:12]} b4 {[%emt 0:00:30]} 14. Nce2 {[%emt 0:00:03]} d5 {[%emt 0:00:01]} 15. exd5 {[%emt 0:00:16]} Nxd5 {[%emt 0:00:17]} 16. Bf2 {[%emt 0:00:51]} Rb8 {[%emt 0:01:07]} 17. Ka1 {[%emt 0:00:40]} Bd6 {[%emt 0:00:42]} 18. Be4 {[%emt 0:04:44]} Nc4 {[%emt 0:02:06]} 19. Qd3 {[%emt 0:00:50]} Ne5 {[%emt 0:01:45]} 20. Qd2 {[%emt 0:00:19]} Nc4 {[%emt 0:00:08]} 21. Qd3 {[%emt 0:00:41]} Ne5 {[%emt 0:00:06]} 1/2-1/2

[Event "Gaprindashvili Cup Open II Stage 2020"]
[Site "Online"]
[Date "2020.11.08"]
[Round "6.16"]
[White "Kachkachishvili, Lasha"]
[Black "Chanturia, Lasha"]
[Result "1-0"]
[ECO "A05"]
[WhiteElo "1681"]
[BlackElo "1761"]
[Annotator "NA RC"]
[PlyCount "125"]
[EventDate "2020.11.04"]
[EventType "swiss"]
[SourceTitle "playchess.com"]
[Source "ChessBase"]
[SourceQuality "1"]
[TimeControl "1500+5"]

1. Nf3 {[%emt 0:00:04]} c5 {[%emt 0:00:12]} 2. b3 {[%emt 0:00:04]} e6 {[%emt 0:00:02]} 3. Bb2 {[%emt 0:00:01]} Nf6 {[%emt 0:00:04]} 4. e3 {[%emt 0:00:02]} Qc7 {[%emt 0:00:03]} 5. Be2 {[%emt 0:00:07]} b6 {[%emt 0:00:08]} 6. d4 {[%emt 0:00:05]} Bb7 {[%emt 0:00:04]} 7. dxc5 {[%emt 0:00:03]} Bxc5 {[%emt 0:00:04]} 8. h3 {[%emt 0:00:07]} a6 {[%emt 0:00:03]} 9. O-O {[%emt 0:00:04]} Nc6 {[%emt 0:00:07]} 10. c4 {[%emt 0:00:07]} h5 {[%emt 0:00:06]} 11. Nc3 {[%emt 0:00:14]} Ng4 {[%emt 0:00:21]} 12. Ne4 {[%emt 0:03:21]} f5 {[%emt 0:01:26]} 13. Nxc5 {[%emt 0:00:44]} bxc5 {[%emt 0:00:04]} 14. g3 {[%emt 0:02:56]} h4 {[%emt 0:00:15]} 15. Nxh4 {[%emt 0:03:40]} Rxh4 {[%emt 0:00:06]} 16. hxg4 {[%emt 0:00:47]} Rh7 {[%emt 0:00:56]} 17. Bf3 {[%emt 0:00:38]} fxg4 {[%emt 0:00:06]} 18. Bg2 {[%emt 0:02:00]} O-O-O {[%emt 0:00:06]} 19. Qxg4 {[%emt 0:00:45]} Rdh8 {[%emt 0:00:04]} 20. Be4 {[%emt 0:01:44]} Rh1+ {[%emt 0:01:52]} 21. Kg2 {[%emt 0:01:01]} R1h2+ {[%emt 0:00:04]} 22. Kf3 {[%emt 0:00:30]} Rf8+ {[%emt 0:00:20]} 23. Ke2 {[%emt 0:00:07]} Ne5 {[%emt 0:01:05]} 24. Bxb7+ {[%emt 0:00:43]} Kxb7 {[%emt 0:00:27]} 25. Qxg7 {[%emt 0:00:33]} Rf5 {[%emt 0:00:31]} 26. Bxe5 {[%emt 0:00:41]} Rxe5 {[%emt 0:00:16]} 27. Rad1 {[%emt 0:00:10]} d5 {[%emt 0:01:43]} 28. Qxc7+ {[%emt 0:00:11]} Kxc7 {[%emt 0:00:03]} 29. Rh1 {[%emt 0:00:30]} Rxh1 {[%emt 0:00:05]} 30. Rxh1 {[%emt 0:00:03]} d4 {[%emt 0:00:03]} 31. Rh4 {[%emt 0:00:14]} dxe3 {[%emt 0:00:16]} 32. fxe3 {[%emt 0:00:01]} Rf5 {[%emt 0:00:05]} 33. g4 {[%emt 0:00:06]} Rg5 {[%emt 0:00:07]} 34. Kf3 {[%emt 0:00:03]} Kd6 {[%emt 0:00:04]} 35. Kf4 {[%emt 0:00:03]} Rg8 {[%emt 0:00:02]} 36. g5 {[%emt 0:00:18]} Rf8+ {[%emt 0:00:02]} 37. Ke4 {[%emt 0:00:21]} Rg8 {[%emt 0:00:05]} 38. Rg4 {[%emt 0:00:04]} Rg6 {[%emt 0:00:03]} 39. Rg1 {[%emt 0:00:04]} a5 {[%emt 0:00:08]} 40. a3 {[%emt 0:00:17]} Rg7 {[%emt 0:00:08]} 41. Rd1+ {[%emt 0:00:06]} Ke7 {[%emt 0:00:03]} 42. Kf4 {[%emt 0:00:02]} Rf7+ {[%emt 0:00:02]} 43. Kg4 {[%emt 0:00:13]} Rf2 {[%emt 0:00:03]} 44. Rh1 {[%emt 0:00:13]} Rg2+ {[%emt 0:00:07]} 45. Kf4 {[%emt 0:00:07]} Rb2 {[%emt 0:00:13]} 46. Rh7+ {[%emt 0:00:06]} Kf8 {[%emt 0:00:02]} 47. Ra7 {[%emt 0:00:39]} Rxb3 {[%emt 0:00:08]} 48. Rxa5 {[%emt 0:00:02]} Rc3 {[%emt 0:00:06]} 49. Rxc5 {[%emt 0:00:08]} Rxa3 {[%emt 0:00:02]} 50. e4 {[%emt 0:00:02]} Ke7 {[%emt 0:00:06]} 51. Ke5 {[%emt 0:00:05]} Rg3 {[%emt 0:00:06]} 52. Rc7+ {[%emt 0:00:02]} Kd8 {[%emt 0:00:13]} 53. Rg7 {[%emt 0:00:03]} Rc3 {[%emt 0:00:03]} 54. Kxe6 {[%emt 0:00:10]} Rxc4 {[%emt 0:00:05]} 55. e5 {[%emt 0:00:02]} Rc6+ {[%emt 0:00:04]} 56. Kf5 {[%emt 0:00:04]} Ke8 {[%emt 0:00:04]} 57. g6 {[%emt 0:00:05]} Kf8 {[%emt 0:00:24]} 58. Ra7 {[%emt 0:00:03]} Rb6 {[%emt 0:02:35]} 59. e6 {[%emt 0:00:16]} Rb1 {[%emt 0:00:10]} 60. Rf7+ {[%emt 0:00:05]} Kg8 {[%emt 0:00:15]} 61. e7 {[%emt 0:00:06]} Rb8 {[%emt 0:02:10]} 62. Kg5 {[%emt 0:00:14]} Kh8 {[%emt 0:03:25]} 63. Kh6 {[%emt 0:00:21]} 1-0

[Event "Gaprindashvili Cup Open II Stage 2020"]
[Site "Online"]
[Date "2020.11.08"]
[Round "6.18"]
[White "Tsanatsqenishvili, Alexandre"]
[Black "Kupatadze, Tornike"]
[Result "1/2-1/2"]
[ECO "B06"]
[WhiteElo "1702"]
[BlackElo "1657"]
[Annotator "NA RC"]
[PlyCount "91"]
[EventDate "2020.11.04"]
[EventType "swiss"]
[SourceTitle "playchess.com"]
[Source "ChessBase"]
[SourceQuality "1"]
[TimeControl "1500+5"]

1. e4 {[%emt 0:00:02]} g6 {[%emt 0:00:11]} 2. d4 {[%emt 0:00:05]} Bg7 {[%emt 0:00:02]} 3. Nc3 {[%emt 0:00:02]} d6 {[%emt 0:00:02]} 4. g3 {[%emt 0:00:03]} Nc6 {[%emt 0:00:11]} 5. Nge2 {[%emt 0:00:01]} Bg4 {[%emt 0:00:05]} 6. Qd3 {[%emt 0:00:17]} e5 {[%emt 0:01:01]} 7. d5 {[%emt 0:00:37]} Nce7 {[%emt 0:00:07]} 8. f3 {[%emt 0:00:35]} Bd7 {[%emt 0:00:07]} 9. Bg2 {[%emt 0:00:03]} f5 {[%emt 0:00:02]} 10. O-O {[%emt 0:00:03]} Nf6 {[%emt 0:00:02]} 11. Be3 {[%emt 0:00:13]} O-O {[%emt 0:00:23]} 12. Qd2 {[%emt 0:00:30]} Nh5 {[%emt 0:00:24]} 13. exf5 {[%emt 0:00:08]} Nxf5 {[%emt 0:00:09]} 14. Bg5 {[%emt 0:00:04]} Nf6 {[%emt 0:00:12]} 15. f4 {[%emt 0:00:24]} h6 {[%emt 0:01:00]} 16. Bxf6 {[%emt 0:02:01]} Bxf6 {[%emt 0:03:08]} 17. Ne4 {[%emt 0:00:16]} Bg7 {[%emt 0:01:04]} 18. fxe5 {[%emt 0:00:07]} Bxe5 {[%emt 0:00:09]} 19. c3 {[%emt 0:01:24]} Kh7 {[%emt 0:00:25]} 20. Nf4 {[%emt 0:00:14]} Qe7 {[%emt 0:00:24]} 21. Rae1 {[%emt 0:00:22]} Rae8 {[%emt 0:00:17]} 22. Rf2 {[%emt 0:02:42]} Qg7 {[%emt 0:00:32]} 23. Rfe2 {[%emt 0:00:42]} Bb5 {[%emt 0:02:20]} 24. Rf2 {[%emt 0:00:09]} Bd7 {[%emt 0:00:03]} 25. Nd3 {[%emt 0:00:31]} c6 {[%emt 0:00:24]} 26. dxc6 {[%emt 0:01:08]} Bxc6 {[%emt 0:00:04]} 27. Rfe2 {[%emt 0:00:02]} Qc7 {[%emt 0:01:57]} 28. Nb4 {[%emt 0:01:13]} Rd8 {[%emt 0:01:30]} 29. Nd5 {[%emt 0:03:09]} Bxd5 {[%emt 0:00:45]} 30. Qxd5 {[%emt 0:00:03]} Qb6+ {[%emt 0:00:07]} 31. Kh1 {[%emt 0:00:02]} Rde8 {[%emt 0:00:06]} 32. Nf2 {[%emt 0:02:25]} Nxg3+ {[%emt 0:00:52]} 33. hxg3 {[%emt 0:00:05]} Rxf2 {[%emt 0:00:02]} 34. Rxf2 {[%emt 0:00:06]} Qxf2 {[%emt 0:00:01]} 35. Rf1 {[%emt 0:00:04]} Qe2 {[%emt 0:00:37]} 36. Qxb7+ {[%emt 0:02:24]} Bg7 {[%emt 0:00:12]} 37. Rf7 {[%emt 0:03:10]} Qd1+ {[%emt 0:01:30]} 38. Kh2 {[%emt 0:00:06]} Qh5+ {[%emt 0:00:10]} 39. Kg1 {[%emt 0:00:08]} Qc5+ {[%emt 0:00:09]} 40. Kh2 {[%emt 0:00:16]} Qh5+ {[%emt 0:00:05]} 41. Kg1 {[%emt 0:00:12]} Re1+ {[%emt 0:00:26]} 42. Rf1 {[%emt 0:00:09]} Qc5+ {[%emt 0:00:21]} 43. Kh2 {[%emt 0:00:07]} Qh5+ {[%emt 0:00:09]} 44. Kg1 {[%emt 0:00:02]} Qc5+ {[%emt 0:00:36]} 45. Kh2 {[%emt 0:00:04]} Qh5+ {[%emt 0:00:17]} 46. Kg1 {[%emt 0:00:04]} 1/2-1/2